fUST/lending_fUST_20240820
["ID","MTS","AMOUNT","RATE_DAILY","PERIOD"]
[335320520,1724110239351,-6935.94482088,0.00015022,2]
[335320522,1724110239361,-400.0,0.00015342,2]
[335320524,1724110239371,-6086.56233148,0.00015433,2]
[335320526,1724110239381,-5244.78933856,0.00015493,2]
[335320528,1724110239392,-6935.94482088,0.00015597,2]
[335320530,1724110239401,-154.69833824,0.0001564,2]
[335320533,1724110239411,-574.18002641,0.00015849,2]
[335320535,1724110239420,-4144.52694303,0.0001588,2]
[335320537,1724110239430,-2000.0,0.00015888,2]
[335320539,1724110239439,-360.85671,0.0001589,2]
[335320541,1724110239449,-465.8297061,0.00015918,2]
[335320543,1724110239459,-823.0,0.00015969,2]
[335320545,1724110239471,-200.0,0.00015973,2]
[335320547,1724110239484,-272103.61322092,0.0001599,5]
[335320549,1724110239498,-435.65805445,0.0001599,5]
[335320552,1724110239509,-221719.675131,0.0001599,2]
[335320554,1724110239519,-1110.9613583,0.00015999,2]
[335320556,1724110239532,-81528.10127749,0.00016,2]
[335320559,1724110239547,-18471.89872251,0.00016,2]
[335320561,1724110239559,-9444.39953667,0.00016,2]
[335320563,1724110239570,-460.473655,0.00016,2]
[335320565,1724110239579,-151.0,0.00016,2]
[335320567,1724110239589,-151.0,0.00016,2]
[335320569,1724110239600,-151.0,0.00016,2]
[335320571,1724110239610,-151.0,0.00016,2]
[335320573,1724110239619,-150.112233,0.00016,2]
[335320576,1724110239631,-151.0,0.00016,2]
[335320578,1724110239641,-153.0,0.00016004,2]
[335320580,1724110239653,-153.0,0.00016004,2]
[335320582,1724110239665,-153.0,0.00016004,2]
[335320585,1724110239676,-153.0,0.00016004,2]
[335320587,1724110239687,-153.0,0.00016004,2]
[335320589,1724110239696,-153.0,0.00016004,2]
[335320591,1724110239705,-153.0,0.00016004,2]
[335320593,1724110239715,-153.0,0.00016004,2]
[335320595,1724110239724,-153.0,0.00016004,2]
[335320597,1724110239733,-153.0,0.00016004,2]
[335320599,1724110239742,-153.0,0.00016004,2]
[335320601,1724110239751,-153.0,0.00016004,2]
[335320603,1724110239761,-153.0,0.00016004,2]
[335320605,1724110239770,-153.0,0.00016004,2]
[335320607,1724110239780,-153.0,0.00016004,2]
[335320609,1724110239789,-153.0,0.00016004,2]
[335320611,1724110239799,-153.0,0.00016004,2]
[335320613,1724110239808,-153.0,0.00016004,2]
[335320614,1724110239817,-153.0,0.00016004,2]
[335320616,1724110239827,-153.0,0.00016004,2]
[335320618,1724110239836,-153.0,0.00016004,2]
[335320621,1724110239846,-153.0,0.00016004,2]
[335320622,1724110239855,-153.0,0.00016004,2]
[335320624,1724110239865,-153.0,0.00016004,2]
[335320626,1724110239875,-153.0,0.00016004,2]
[335320628,1724110239885,-153.0,0.00016004,2]
[335320630,1724110239896,-153.0,0.00016004,2]
[335320632,1724110239905,-153.0,0.00016004,2]
[335320635,1724110239915,-153.0,0.00016004,2]
[335320637,1724110239925,-153.0,0.00016004,2]
[335320639,1724110239934,-153.0,0.00016004,2]
[335320641,1724110239943,-153.0,0.00016004,2]
[335320643,1724110239953,-153.0,0.00016004,2]
[335320645,1724110239962,-153.0,0.00016004,2]
[335320647,1724110239972,-153.0,0.00016004,2]
[335320649,1724110239982,-150.0,0.00016039,2]
[335320651,1724110239993,-336.82525701,0.00016095,2]
[335320653,1724110240003,-5328.69624806,0.00016147,2]
[335320655,1724110240013,-6935.94482088,0.00016173,2]
[335320657,1724110240022,-150.112236,0.000162,2]
[335320659,1724110240032,-150.112233,0.000162,2]
[335320661,1724110240041,-2756.71608183,0.00016208,2]
[335320663,1724110240050,-58304.97519485,0.00016263,2]
[335320754,1724110241008,-850.86713135,0.00012689,2]
[335320755,1724110241018,-154.69833824,0.00013333,2]
[335320758,1724110241029,-5217.68174289,0.00015966,2]
[335320760,1724110241039,-150.0,0.00016093,2]
[335320762,1724110241050,-15601.58318215,0.00016263,2]
[335320764,1724110241060,-151.0,0.00016264,2]
[335320766,1724110241070,-151.0,0.00016264,2]
[335320768,1724110241082,-151.0,0.00016264,2]
[335320769,1724110241093,-151.0,0.00016264,2]
[335320770,1724110241103,-151.0,0.00016264,2]
[335320771,1724110241113,-500.0,0.00016274,2]
[335320772,1724110241122,-500.0,0.00016274,2]
[335320773,1724110241131,-150.112233,0.000163,2]
[335320774,1724110241140,-150.112233,0.000163,2]
[335320775,1724110241150,-150.112233,0.000163,2]
[335320776,1724110241159,-150.112233,0.000163,2]
[335320777,1724110241168,-330.148247,0.00016308,2]
[335320778,1724110241178,-330.148247,0.00016308,2]
[335320779,1724110241187,-330.148247,0.00016308,2]
[335320780,1724110241197,-330.148247,0.00016308,2]
[335320781,1724110241208,-151.0,0.00016308,2]
[335320782,1724110241219,-151.0,0.00016308,2]
[335320783,1724110241229,-151.0,0.00016308,2]
[335320784,1724110241239,-167.333463,0.00016308,2]
[335320785,1724110241256,-167.333463,0.00016308,2]
[335320786,1724110241265,-162.029148,0.00016308,2]
[335320787,1724110241274,-167.333463,0.00016308,2]
[335320788,1724110241283,-167.333463,0.00016308,2]
[335320789,1724110241291,-329.925387,0.00016308,2]
[335320790,1724110241300,-329.925387,0.00016308,2]
[335320791,1724110241310,-329.925387,0.00016308,2]
[335320792,1724110241319,-329.925387,0.00016308,2]
[335320793,1724110241328,-151.0,0.00016308,2]
[335320794,1724110241337,-151.0,0.00016308,2]
[335320795,1724110241346,-203.614659,0.00016308,2]
[335320796,1724110241355,-203.614659,0.00016308,2]
[335320797,1724110241364,-203.614659,0.00016308,2]
[335320798,1724110241373,-203.614659,0.00016308,2]
[335320799,1724110241382,-301.057366,0.00016308,2]
[335320800,1724110241391,-301.057366,0.00016308,2]
[335320801,1724110241400,-520.77108,0.00016308,2]
[335320802,1724110241409,-520.77108,0.00016308,2]
[335320803,1724110241419,-301.057366,0.00016308,2]
[335320804,1724110241429,-301.057366,0.00016308,2]
[335320805,1724110241438,-520.77108,0.00016308,2]
[335320806,1724110241448,-520.77108,0.00016308,2]
[335320807,1724110241457,-151.0,0.00016308,2]
[335320808,1724110241467,-151.0,0.00016308,2]
[335320809,1724110241478,-151.0,0.00016308,2]
[335320810,1724110241493,-153.528801,0.00016308,2]
[335320811,1724110241503,-260.56606,0.00016308,2]
[335320812,1724110241513,-260.56606,0.00016308,2]
[335320813,1724110241522,-260.56606,0.00016308,2]
[335320814,1724110241534,-260.56606,0.00016308,2]
[335320815,1724110241544,-331.518342,0.00016308,2]
[335320817,1724110241554,-331.518342,0.00016308,2]
[335320818,1724110241565,-331.518342,0.00016308,2]
[335320819,1724110241575,-331.518342,0.00016308,2]
[335320821,1724110241584,-151.921948,0.00016308,2]
[335320823,1724110241593,-151.921948,0.00016308,2]
[335320825,1724110241602,-151.921948,0.00016308,2]
[335320827,1724110241612,-151.921948,0.00016308,2]
[335320829,1724110241621,-209.435023,0.00016308,2]
[335320831,1724110241630,-209.435023,0.00016308,2]
[335320833,1724110241640,-209.435023,0.00016308,2]
[335320835,1724110241650,-209.435023,0.00016308,2]
[335320837,1724110241659,-151.0,0.00016308,2]
[335320839,1724110241669,-151.0,0.00016308,2]
[335320841,1724110241681,-151.0,0.00016308,2]
[335320843,1724110241691,-151.0,0.00016308,2]
[335320845,1724110241700,-151.0,0.00016308,2]
[335320847,1724110241710,-151.0,0.00016308,2]
[335320849,1724110241719,-216.368292,0.00016308,2]
[335320851,1724110241728,-151.0,0.00016308,2]
[335320854,1724110241737,-151.0,0.00016308,2]
[335320856,1724110241747,-151.0,0.00016308,2]
[335320858,1724110241756,-151.0,0.00016308,2]
[335320860,1724110241769,-151.0,0.00016308,2]
[335320862,1724110241779,-151.0,0.00016308,2]
[335320864,1724110241790,-151.0,0.00016308,2]
[335320867,1724110241802,-151.0,0.00016308,2]
[335320869,1724110241812,-151.0,0.00016308,2]
[335320871,1724110241822,-521.0,0.00016318,2]
[335320873,1724110241832,-1414.0,0.00016318,2]
[335320875,1724110241841,-7726.0,0.00016318,2]
[335320877,1724110241851,-151.0,0.00016318,2]
[335320879,1724110241860,-151.0,0.00016318,2]
[335320881,1724110241870,-151.0,0.00016318,2]
[335320883,1724110241879,-151.0,0.00016318,2]
[335320885,1724110241889,-151.0,0.00016328,2]
[335320887,1724110241899,-151.0,0.00016328,2]
[335320889,1724110241908,-151.0,0.00016328,2]
[335320891,1724110241917,-151.0,0.00016328,2]
[335320893,1724110241927,-151.0,0.00016328,2]
[335320895,1724110241937,-151.0,0.00016328,2]
[335320897,1724110241946,-247.310179,0.00016338,2]
[335320899,1724110241955,-151.0,0.00016338,2]
[335320901,1724110241964,-151.0,0.00016338,2]
[335320903,1724110241974,-234.084086,0.00016338,2]
[335320905,1724110241984,-151.0,0.00016338,2]
[335320907,1724110241994,-151.0,0.00016338,2]
[335320909,1724110242003,-40000.0,0.00016338,2]
[335320911,1724110242013,-151.0,0.00016352,2]
[335320913,1724110242024,-351.012483,0.00016352,2]
[335320915,1724110242033,-351.012483,0.00016352,2]
[335320917,1724110242043,-151.0,0.00016352,2]
[335320919,1724110242053,-151.0,0.00016352,2]
[335320921,1724110242063,-167.200843,0.00016352,2]
[335320923,1724110242073,-151.0,0.00016352,2]
[335320925,1724110242083,-151.0,0.00016352,2]
[335320927,1724110242093,-151.0,0.00016352,2]
[335320929,1724110242102,-34002.16152658,0.00016362,2]
[335320931,1724110242115,-1150.345011,0.00016362,2]
[335321094,1724110243581,-1110.9613583,0.00015999,2]
[335321096,1724110243591,-14757.33023988,0.00016362,2]
[335321098,1724110243601,-151.0,0.00016362,2]
[335321100,1724110243610,-151.0,0.00016362,2]
[335321102,1724110243619,-151.0,0.00016362,2]
[335321104,1724110243629,-151.0,0.00016362,2]
[335321106,1724110243639,-186.891644,0.00016362,2]
[335321109,1724110243650,-330.148247,0.00016362,2]
[335321111,1724110243661,-330.148247,0.00016362,2]
[335321113,1724110243673,-167.333463,0.00016362,2]
[335321115,1724110243684,-122.84272676,0.00016362,2]
[335321153,1724110243946,-44.49073624,0.00016362,2]
[335321155,1724110243956,-329.925387,0.00016362,2]
[335321157,1724110243965,-329.925387,0.00016362,2]
[335321159,1724110243975,-203.614659,0.00016362,2]
[335321161,1724110243984,-203.614659,0.00016362,2]
[335321163,1724110243994,-301.057366,0.00016362,2]
[335321165,1724110244004,-520.77108,0.00016362,2]
[335321167,1724110244014,-301.057366,0.00016362,2]
[335321169,1724110244023,-520.77108,0.00016362,2]
[335321171,1724110244033,-151.0,0.00016362,2]
[335321173,1724110244045,-260.56606,0.00016362,2]
[335321175,1724110244054,-260.56606,0.00016362,2]
[335321177,1724110244066,-331.518342,0.00016362,2]
[335321180,1724110244079,-16.49920102,0.00016362,2]
[335323057,1724110790343,150.0,0.00021,120]
[335323073,1724111252136,-154.30258952,0.00012971,2]
[335323113,1724111432586,-212.87252483,9.9e-05,2]
[335323115,1724111432597,-275.48030734,0.00012934,2]
[335323117,1724111432606,-154.69833824,0.00012934,2]
[335323119,1724111432616,-8350.06256304,0.00012971,2]
[335323121,1724111432626,-546.43426388,0.00012971,2]
[335323123,1724111432635,-300.0,0.00012984,2]
[335323125,1724111432644,-154.91162192,0.00012999,2]
[335323127,1724111432654,-223.52112672,0.00013496,2]
[335323128,1724111432663,-839.1358688,0.00013596,2]
[335323145,1724111438800,-448.06710199,0.00013596,2]
[335323146,1724111438813,-534.52389159,0.00013597,2]
[335323147,1724111438822,-169.31475,0.00013632,2]
[335323148,1724111438832,-10589.85450688,0.00013653,2]
[335323149,1724111438845,-1170.68663632,0.00013653,2]
[335323150,1724111438855,-251.9504428,0.00013681,2]
[335323151,1724111438865,-154.69833824,0.00013688,2]
[335323152,1724111438880,-3000.0,0.00013699,2]
[335323153,1724111438890,-169.31475,0.0001372,2]
[335323154,1724111438900,-221.22133175,0.00013792,2]
[335323155,1724111438910,-169.31475,0.00013809,2]
[335323156,1724111438925,-500.155964,0.00013888,2]
[335323157,1724111438937,-169.31475,0.00013898,2]
[335323158,1724111438950,-696.01916867,0.00013971,2]
[335323159,1724111438960,-169.31475,0.00013987,2]
[335323160,1724111438970,-169.31475,0.00014075,2]
[335323161,1724111438980,-169.31475,0.00014164,2]
[335323162,1724111438991,-712.5,0.00014247,2]
[335323163,1724111439003,-201.42971,0.00014247,2]
[335323164,1724111439013,-169.31475,0.00014253,2]
[335323165,1724111439023,-420.0,0.00014283,2]
[335323166,1724111439034,-169.31475,0.00014342,2]
[335323167,1724111439044,-216.6891821,0.00014466,2]
[335323168,1724111439056,-800.28372328,0.00014519,2]
[335323169,1724111439067,-813.2456491,0.00014519,2]
[335323170,1724111439078,-4789.97021591,0.00015,2]
[335323171,1724111439092,-454.81912265,0.00015,2]
[335323172,1724111439102,-284.584462,0.00015687,2]
[335323173,1724111439111,-153.0,0.00015687,2]
[335323174,1724111439125,-153.0,0.00015687,2]
[335323175,1724111439134,-306.0,0.00015687,2]
[335323176,1724111439144,-587.0,0.00015711,2]
[335323177,1724111439155,-6.10845927,0.0001589,2]
[335323178,1724111439168,-336.70541473,0.0001589,2]
[335323179,1724111439179,-154.76012181,0.00016043,2]
[335323180,1724111439191,-90.95200185,0.00016043,2]
[335323185,1724111440928,-174.83511409,0.00013697,2]
[335323186,1724111440938,-409.04799815,0.00016043,2]
[335323187,1724111440951,-500.0,0.00016043,2]
[335323188,1724111440961,-500.0,0.00016043,2]
[335323189,1724111440971,-500.0,0.00016043,2]
[335323190,1724111440980,-390.95503085,0.00016043,2]
[335323191,1724111440990,-5328.69624806,0.00016044,2]
[335323192,1724111441001,-4806.9176738,0.00016053,2]
[335323193,1724111441011,-150.0,0.00016255,2]
[335323194,1724111441020,-521.0,0.00016255,2]
[335323195,1724111441030,-1414.0,0.00016255,2]
[335323196,1724111441039,-7726.0,0.00016255,2]
[335323197,1724111441049,-2000.0,0.0001626,2]
[335323198,1724111441058,-284.72512788,0.00016262,2]
[335323199,1724111441067,-500.0,0.00016274,2]
[335323200,1724111441077,-284.72512786,0.00016281,2]
[335323201,1724111441086,-284.72512786,0.000163,2]
[335323202,1724111441095,-284.72512786,0.00016319,2]
[335323203,1724111441105,-284.72512786,0.00016338,2]
[335323204,1724111441114,-17120.69926546,0.00016338,2]
[335323205,1724111441124,-152.26535487,0.00016349,2]
[335323206,1724111441133,-443.77358594,0.00016349,2]
[335323207,1724111441142,-500.0,0.00016349,2]
[335323208,1724111441152,-500.0,0.00016349,2]
[335323209,1724111441161,-500.0,0.00016349,2]
[335323210,1724111441170,-500.0,0.00016349,2]
[335323211,1724111441179,-636.26483305,0.00016349,2]
[335323212,1724111441188,-500.0,0.00016349,2]
[335323213,1724111441199,-500.0,0.00016349,2]
[335323214,1724111441208,-500.0,0.00016349,2]
[335323215,1724111441217,-160.64151015,0.00016349,2]
[335323216,1724111441226,-500.0,0.00016349,2]
[335323217,1724111441236,-607.46863975,0.00016349,2]
[335323218,1724111441247,-500.0,0.00016349,2]
[335323219,1724111441256,-76777.09544337,0.0001635,2]
[335323245,1724111446718,-223.52112672,0.00013477,2]
[335323246,1724111446728,-250.077982,0.00015268,2]
[335323247,1724111446739,-150.0,0.00016255,2]
[335323248,1724111446750,-7731.221,0.00016255,2]
[335323249,1724111446762,-1629.87415397,0.0001635,2]
[335323388,1724111762515,10000.0,7.376e-05,2]
[335323389,1724111775813,5728.0,7.376e-05,2]
[335323394,1724111991341,8350.06256304,7.376e-05,2]
[335323396,1724112020153,189.2101249,7.376e-05,2]
[335323405,1724112395453,154.69833824,7.376e-05,2]
[335323409,1724112413265,154.69833824,7.376e-05,2]
[335323410,1724112441144,-3145.96677411,7.832e-05,2]
[335323429,1724112560089,-2066.90575072,7.754e-05,2]
[335323430,1724112560110,-2515.32253852,7.832e-05,2]
[335323431,1724112560131,-300.0,7.91e-05,2]
[335323432,1724112560152,-300.0,7.91e-05,2]
[335323433,1724112560173,-2166.25640825,7.911e-05,2]
[335323434,1724112560194,-1500.0,7.911e-05,2]
[335323435,1724112560215,-154.91162192,7.911e-05,2]
[335323436,1724112560239,-857.0768813,7.911e-05,2]
[335323437,1724112560259,-290.94692386,7.911e-05,2]
[335323438,1724112560280,-319.12588046,7.911e-05,2]
[335323439,1724112560302,-546.43426388,7.911e-05,2]
[335323440,1724112560325,-327.69172555,8.701e-05,2]
[335323441,1724112572087,-92.30827445,8.701e-05,2]
[335323442,1724112572109,-147.79172555,8.769e-05,2]
[335323891,1724112637847,-155.16861435,7.832e-05,2]
[335323893,1724112637857,-550.22306072,9.493e-05,2]
[335324095,1724112640110,-469.72204481,9.493e-05,2]
[335324097,1724112640120,-412.72601555,0.0001,2]
[335324099,1724112640129,-154.68290005,0.00012898,2]
[335324101,1724112640138,-154.68290005,0.00012898,2]
[335324103,1724112640147,-154.82190538,0.00012971,2]
[335324105,1724112640157,-174.83511409,0.00012985,2]
[335324107,1724112640166,-705.3916751,0.00013699,2]
[335324109,1724112640175,-250.077982,0.00013699,2]
[335324111,1724112640184,-750.0,0.00014247,2]
[335324113,1724112640194,-159.38749,0.00014247,2]
[335324115,1724112640202,-300.0,0.00015348,2]
[335324117,1724112640211,-150.0,0.00015349,2]
[335324138,1724112640397,-521.0,0.00015349,2]
[335324140,1724112640407,-1414.0,0.00015488,2]
[335324142,1724112640416,-465.0414853,0.00015878,2]
[335324144,1724112640425,-325.67318,0.0001589,2]
[335324146,1724112640435,-5328.69624806,0.0001593,2]
[335324148,1724112640445,-150.0,0.00016089,2]
[335324150,1724112640454,-284.72512788,0.00016228,2]
[335324152,1724112640463,-2000.0,0.00016228,2]
[335324154,1724112640472,-150.0,0.00016255,2]
[335324156,1724112640483,-284.72512786,0.00016256,2]
[335324158,1724112640495,-500.0,0.00016274,2]
[335324160,1724112640504,-500.0,0.00016282,2]
[335324162,1724112640513,-500.0,0.00016282,2]
[335324164,1724112640522,-500.0,0.00016282,2]
[335324166,1724112640531,-500.0,0.00016282,2]
[335324168,1724112640540,-309.09822918,0.00016282,2]
[335324170,1724112640550,-284.72512786,0.00016283,2]
[335324172,1724112640558,-500.0,0.000163,2]
[335324173,1724112640568,-284.72512786,0.00016311,2]
[335324175,1724112640577,-56128.5042342,0.00016318,2]
[335324177,1724112640586,-34002.16152658,0.0001632,2]
[335324179,1724112640595,-443.77358594,0.00016327,2]
[335324181,1724112640604,-152.26535487,0.00016327,2]
[335324183,1724112640613,-500.0,0.00016327,2]
[335324185,1724112640623,-500.0,0.00016327,2]
[335324187,1724112640632,-500.0,0.00016327,2]
[335324189,1724112640641,-500.0,0.00016327,2]
[335324191,1724112640650,-500.0,0.00016327,2]
[335324193,1724112640659,-500.0,0.00016327,2]
[335324195,1724112640669,-500.0,0.00016327,2]
[335324197,1724112640679,-500.0,0.00016327,2]
[335324199,1724112640687,-500.0,0.00016327,2]
[335324201,1724112640697,-500.0,0.00016327,2]
[335324203,1724112640706,-243.7334728,0.00016327,2]
[335324205,1724112640715,-500.0,0.00016327,2]
[335324207,1724112640724,-200.0,0.00016327,2]
[335324209,1724112640738,-500.0,0.00016327,2]
[335324211,1724112640747,-160.64151015,0.00016327,2]
[335324213,1724112640757,-10773.46897129,0.00016328,2]
[335324444,1724112642996,-7726.0,0.00015488,2]
[335324446,1724112643006,-5568.43006823,0.00016328,2]
[335324448,1724112643018,-1764.906184,0.00016328,2]
[335325341,1724113542122,-174.83511409,8.521e-05,2]
[335325342,1724113542144,-562.59039376,8.705e-05,2]
[335325343,1724113542165,-285.79838156,0.00011,2]
[335325344,1724113542186,-5526.90170772,0.00012999,2]
[335325345,1724113542207,-600.88577429,0.00012999,2]
[335325346,1724113542228,-213.13084709,0.00013051,2]
[335325347,1724113542252,-196.81150092,0.00013333,2]
[335325348,1724113542275,-300.0,0.00013478,2]
[335325349,1724113542296,-300.0,0.00013478,2]
[335325350,1724113542317,-4966.0480737,0.00013479,2]
[335325351,1724113542339,-1330.68424841,0.00013497,2]
[335325352,1724113542359,-154.82190538,0.00013597,2]
[335325353,1724113542383,-154.96350239,0.00013697,2]
[335325354,1724113542407,-156.82259234,0.00013698,2]
[335325355,1724113542429,-3000.0,0.00013699,2]
[335325356,1724113542451,-250.077982,0.00013699,2]
[335325357,1724113542471,-194.82337617,0.00013699,2]
[335325358,1724113542495,-154.69833824,0.00013792,2]
[335325359,1724113542515,-197.78705024,0.00013792,2]
[335325360,1724113542538,-741.992871,0.00014247,2]
[335325361,1724113542559,-173.487462,0.00014247,2]
[335325362,1724113542582,-301.53815771,0.00014519,2]
[335325363,1724113542607,-420.0,0.00014826,2]
[335325364,1724113542628,-325.67318,0.0001589,2]
[335325365,1724113542651,-5205.73234567,0.00015915,2]
[335325366,1724113542674,-5328.69624806,0.00015924,2]
[335325367,1724113542696,-284.72512788,0.0001595,2]
[335325368,1724113542718,-200.0,0.00015973,2]
[335325369,1724113542739,-500.0,0.00015989,2]
[335325370,1724113542763,-500.0,0.00015989,2]
[335325371,1724113542786,-500.0,0.00015989,2]
[335325372,1724113542808,-309.09822918,0.00015989,2]
[335325373,1724113542829,-500.0,0.00015989,2]
[335325374,1724113542851,-6747.61827844,0.0001599,2]
[335325376,1724113643104,-820.12008693,9.9e-05,2]
[335325377,1724113643127,-422.14513971,0.00014245,2]
[335325378,1724113643148,-309.3658001,0.00014519,2]
[335325379,1724113643169,-200.0,0.00015973,2]
[335325380,1724113643191,-160.06048279,0.00015989,2]
[335325424,1724113835452,-418.89313081,9.8e-05,2]
[335325431,1724113835509,-3934.26046837,9.8e-05,2]
[335325433,1724113835520,-1503.69614752,9.899e-05,2]
[335325436,1724113835532,-300.0,9.999e-05,2]
[335325439,1724113835555,-10925.47230374,0.0001,2]
[335325442,1724113835568,-420.0,0.00010999,2]
[335325444,1724113835584,-587.0,0.00012099,2]
[335325447,1724113835599,-823.0,0.00013309,2]
[335325449,1724113835614,-174.83511409,0.00013792,2]
[335325452,1724113835630,-404.43330921,0.00014519,2]
[335325454,1724113835645,-342.65845262,0.00014519,2]
[335325457,1724113835658,-713.0,0.0001464,2]
[335325459,1724113835672,-222.69133734,0.000149,2]
[335325462,1724113835687,-732.9058083,0.00014996,2]
[335325464,1724113835701,-309.389521,0.0001589,2]
[335325467,1724113835715,-2000.0,0.000159,2]
[335325469,1724113835729,-150.0,0.0001592,2]
[335325471,1724113835740,-1144.45444989,0.00015989,2]
[335325473,1724113835752,-405.4347584,0.00015989,2]
[335325475,1724113835764,-161.83409761,0.00015989,2]
[335325477,1724113835775,-245.37793569,0.00015989,2]
[335325480,1724113835788,-154.69833824,0.00015989,2]
[335325482,1724113835800,-154.69833824,0.00015989,2]
[335325484,1724113835814,-4496.44138491,0.00015989,2]
[335325487,1724113835827,-305.18657656,0.00015989,2]
[335325489,1724113835844,-55424.4565076,0.0001599,2]
[335325492,1724113835857,-500.0,0.00015999,2]
[335325494,1724113835869,-152.26535487,0.00015999,2]
[335325496,1724113835879,-443.77358594,0.00015999,2]
[335325498,1724113835891,-243.7334728,0.00015999,2]
[335325500,1724113835905,-500.0,0.00015999,2]
[335325503,1724113835917,-500.0,0.00015999,2]
[335325505,1724113835929,-500.0,0.00015999,2]
[335325508,1724113835946,-500.0,0.00015999,2]
[335325510,1724113835958,-500.0,0.00015999,2]
[335325512,1724113835971,-500.0,0.00015999,2]
[335325515,1724113835984,-500.0,0.00015999,2]
[335325517,1724113835997,-500.0,0.00015999,2]
[335325519,1724113836010,-500.0,0.00015999,2]
[335325522,1724113836022,-250.0,0.00015999,2]
[335325524,1724113836035,-500.0,0.00015999,2]
[335325526,1724113836046,-34483.60797011,0.00016,2]
[335325710,1724113838095,-1259.41545977,0.00016,2]
[335325713,1724113838110,-2746.60604398,0.00016,2]
[335325933,1724113840983,-778.77816215,0.00013971,2]
[335325934,1724113840999,-285.29888257,0.00013971,2]
[335325935,1724113841015,-24858.1325703,0.00013971,2]
[335325936,1724113841027,-61510.37052614,0.00016,2]
[335325937,1724113841038,-9444.39953667,0.00016095,2]
[335325938,1724113841051,-9444.39953667,0.00016095,2]
[335325939,1724113841063,-284.72512786,0.00016105,2]
[335325940,1724113841074,-284.72512786,0.00016183,2]
[335325941,1724113841085,-192.0011942,0.00016228,2]
[335325942,1724113841099,-150.0,0.00016244,2]
[335325943,1724113841110,-521.0,0.00016244,2]
[335325944,1724113841121,-7726.0,0.00016244,2]
[335325945,1724113841141,-7731.221,0.00016244,2]
[335325946,1724113841152,-1414.0,0.00016244,2]
[335325947,1724113841164,-2299.8636568,0.0001625,2]
[335326166,1724113843233,-959.24672462,9.9e-05,2]
[335326168,1724113843245,-156.82494329,0.00014519,2]
[335326169,1724113843256,-2603.97345595,0.0001625,2]
[335326170,1724113843270,-1246.72017249,0.0001625,2]
[335326316,1724113846166,-898.59338305,0.00014519,2]
[335326318,1724113846176,-2649.41169994,0.00014519,2]
[335326356,1724113895564,172.0,0.00021,120]
[335326359,1724114035578,4362.46,0.00021,120]
[335326379,1724114955789,364.8,0.00021,120]
[335326421,1724115032234,-5000.0,9.413e-05,2]
[335326422,1724115032245,-1503.69614752,9.508e-05,2]
[335326423,1724115032255,-534.431533,9.632e-05,2]
[335326424,1724115032264,-196.72510748,9.701e-05,2]
[335326425,1724115032275,-7649.87095413,0.00010544,2]
[335326426,1724115032292,-1993.94655177,0.00010544,2]
[335326427,1724115032309,-2041.0036677,0.00010544,2]
[335326463,1724115038135,-43786.27469633,0.00010544,2]
[335326465,1724115038145,-300.0,0.00010738,2]
[335326467,1724115038154,-300.0,0.00010738,2]
[335326469,1724115038164,-250.0,0.0001105,2]
[335326471,1724115038174,-250.0,0.0001108,2]
[335326473,1724115038183,-250.0,0.0001111,2]
[335326475,1724115038192,-24900.0,0.00011127,2]
[335326477,1724115038201,-250.0,0.00011141,2]
[335326479,1724115038210,-250.0,0.00011171,2]
[335326481,1724115038219,-250.0,0.00011201,2]
[335326483,1724115038228,-250.0,0.00011232,2]
[335326485,1724115038237,-250.0,0.00011262,2]
[335326487,1724115038246,-250.0,0.00011292,2]
[335326489,1724115038256,-250.0,0.00011323,2]